Cogmind - Beta 13 @@@ ROGUE MODE // 2024.07.25 @ 15:47:33 Player: OctagonalPrism Result: Self-destructed Performance ------------- Evolutions (1) 500 Regions Visited (5) 1000 Robots Destroyed (28) 140 Value Destroyed (611) 611 Prototype IDs (2) 40 Alien Tech Used (0) 0 Bonus (559) 559 TOTAL SCORE: 2850 Bonus ------- Follower Combat Kills 259 Met Imprinter 300 Cogmind --------- Core Integrity 6/400 Matter 287/300 Energy 12/100 System Corruption 0% Temperature Cool (9) Movement Flying (55) Location -6/Proximity Caves Parts ------- > --- POWER (1) -------- (None) > --- PROPULSION (3) --- Makeshift Flight Unit > --- UTILITY (3) ------ Signal Interpreter Makeshift ECM Suite > --- WEAPON (2) ------- (None) > --- INVENTORY (5) ---- Structural Scanner High-powered Shock Rifle Heavy Laser CR-A16's Pointy Stick GAL Module Peak State ------------ > --- POWER ------------ Makeshift Power Source > --- PROPULSION ------- Flight Unit Cesium-ion Thruster Makeshift Flight Unit > --- UTILITY ---------- Structural Scanner Signal Interpreter Makeshift ECM Suite > --- WEAPON ----------- Light Assault Rifle Light Assault Rifle > --- INVENTORY -------- Flight Unit Advanced Targeting Computer Rocket Launcher CR-A16's Pointy Stick GAL Module [Rating: 20] Favorites ----------- Power Makeshift Power Source Engine Makeshift Power Source Propulsion Flight Unit Wheel Compact Wheel Flight Unit Flight Unit Utility Signal Interpreter Device Structural Scanner Storage Small Storage Unit Processor Signal Interpreter Weapon Light Assault Rifle Energy Gun Medium Laser Ballistic Gun Light Assault Rifle Launcher Rocket Launcher Piercing Weapon CR-A16's Pointy Stick Build | -11 -10 -9 -9 -7 -6 ------- Run | Yrd Mat Mat Min Zio Pro Slots Evolved 2 | . . 2 . . . Power . | . . . . . . Propulsion 1 | . . 1 . . . Utility 1 | . . 1 . . . Weapon . | . . . . . . Parts Attached 44 | 7 4 10 13 3 7 Power 8 | 1 1 3 2 1 . Engine 8 | 1 1 3 2 1 . Core . | . . . . . . Reactor . | . . . . . . Propulsion 17 | 2 1 4 6 1 3 Treads . | . . . . . . Leg . | . . . . . . Wheel 3 | 2 . 1 . . . Hover . | . . . . . . Flight 14 | . 1 3 6 1 3 Utility 9 | 2 2 2 1 1 1 Device 5 | 1 1 1 1 1 . Storage 1 | 1 . . . . . Processor 3 | . 1 1 . . 1 Hackware . | . . . . . . Protection . | . . . . . . Artifact . | . . . . . . Weapon 10 | 2 . 1 4 . 3 Energy Gun 3 | 1 . . 1 . 1 Energy Cannon . | . . . . . . Ballistic Gun 4 | 1 . . 3 . . Ballistic Cannon . | . . . . . . Launcher 2 | . . 1 . . 1 Special Weapon . | . . . . . . Impact Weapon . | . . . . . . Slashing Weapon . | . . . . . . Piercing Weapon 1 | . . . . . 1 Special Melee Weapon . | . . . . . . Unidentified Prototypes . | . . . . . . Parts Lost 16 | . . 3 5 . 8 Power 3 | . . 1 1 . 1 Propulsion 8 | . . 1 3 . 4 Utility 2 | . . 1 . . 1 Weapon 3 | . . . 1 . 2 Highest Loss Streak 6 | . . 2 3 . 6 To Critical Strikes . | . . . . . . Average Slot Usage (%) 95 | . 99 95 93 100 88 Engine 8 | . 14 8 10 11 2 Wheel 4 | . 26 4 . . . Flight 26 | . 1 28 29 33 31 Device 17 | . 14 10 11 18 21 Storage 1 | . 7 . . . . Processor 13 | . 5 21 22 14 11 Energy Gun 5 | . 14 11 8 . 6 Ballistic Gun 16 | . 14 8 12 22 14 Naked Turns . | . . . . . . Heaviest Build 15 | 14 14 11 12 15 15 Greatest Support 26 | 26 26 12 12 16 17 Greatest Overweight (x) 4 | 2 . . 3 . 4 Average Overweight (x) . | . . . . . . Largest Inventory Capacity 8 | 8 8 5 5 5 5 Average Capacity 5 | 7 6 5 5 5 5 Most Carried 5 | 1 5 5 5 5 5 Average Carried 4 | . 2 3 4 4 4 Final Capacity 8 | 8 5 5 5 5 5 Final Carried 5 | 1 5 4 4 5 5 Class Distribution -------------------- 79% | Scavenger-Mutant 20% | Mutant Dominant Class ---------------- Mutant | -10/Materials Scavenger-Mutant | -9/Materials Scavenger-Mutant | -9/Mines Scavenger-Mutant | -7/Zion Scavenger-Mutant | -6/Proximity Caves Resources | -11 -10 -9 -9 -7 -6 ----------- Run | Yrd Mat Mat Min Zio Pro Matter Collected 641 | 240 69 16 186 44 86 Remotely . | . . . . . . Salvage Created 657 | 11 156 177 126 . 187 Parts 55 | 3 11 14 21 . 6 Haulers Intercepted . | . . . . . . Recyclers Shooed . | . . . . . . Parts Field Recycled . | . . . . . . Retrieved Matter . | . . . . . . Parts Self-Destructed 1 | . . . . . 1 Prevented . | . . . . . . Kills | -11 -10 -9 -9 -7 -6 ------- Run | Yrd Mat Mat Min Zio Pro Combat Hostiles Destroyed 25 | . 5 7 7 . 6 Guns 15 | . 5 4 6 . . AOE 9 | . . 3 1 . 5 Classes Destroyed 5 | 1 3 1 . . . Tunneler 1 | 1 . . . . . Watcher 2 | . 1 1 . . . Swarmer 17 | . 3 4 7 . 3 Grunt 7 | . 2 2 . . 3 Sentry 1 | . . 1 . . . Best Kill Streak 8 | 1 3 8 4 . 5 Combat Bots Only 7 | . 3 7 4 . 5 Max Kills in Single Turn 5 | 1 1 3 2 . 5 Gunslinging . | . . . . . . Exploded 5 | . . 3 1 . 5 Melee . | . . . . . . Uniques/NPCs Destroyed . | . . . . . . Combat | -11 -10 -9 -9 -7 -6 -------- Run | Yrd Mat Mat Min Zio Pro Hostile Shots Fired 153 | . 21 56 28 . 48 Missed 52 | . 4 20 6 . 22 Damage Taken 1343 | . 167 372 211 . 593 Core 429 | . 35 70 35 . 289 Absorbed by Shields . | . . . . . . Regen/Repaired (Parts) 4 | . . . . 4 . Core Remaining (%) 93 | 100 86 . . . . Volleys Fired 58 | 2 17 18 9 . 12 Largest 2 | 2 2 2 2 . 2 Hottest 80 | 70 70 70 65 . 80 Shots Fired 112 | 4 34 33 17 . 24 Gun 109 | 4 34 30 17 . 24 Cannon . | . . . . . . Launcher 3 | . . 3 . . . Special . | . . . . . . Kinetic 61 | 2 17 15 10 . 17 Thermal 34 | 2 17 15 . . . Explosive 3 | . . 3 . . . Electromagnetic 14 | . . . 7 . 7 Robot Hit Streak 8 | 2 8 3 4 . 8 Robot Miss Streak 4 | 1 4 3 3 . 2 Penetration Max . | . . . . . . Secondary Targets . | . . . . . . Shots Hit Robots 65 | 2 20 15 11 . 17 Core Hits 41 | 1 8 11 8 . 13 Critical Kills . | . . . . . . Critical Parts Destroyed . | . . . . . . Critical Strikes . | . . . . . . Melee Attacks 1 | . . . . . 1 Impact . | . . . . . . Slashing . | . . . . . . Piercing 1 | . . . . . 1 Sneak Attacks . | . . . . . . Combat Hostiles . | . . . . . . Follow-up Attacks . | . . . . . . Damage Inflicted 1562 | 23 222 433 128 . 756 Guns 744 | 23 222 159 111 . 229 Cannons . | . . . . . . Explosions 818 | . . 274 17 . 527 Melee . | . . . . . . Ramming . | . . . . . . Kinetic 295 | 10 73 59 36 . 117 Thermal 806 | 13 149 100 17 . 527 Explosive 274 | . . 274 . . . Electromagnetic 187 | . . . 75 . 112 Impact . | . . . . . . Slashing . | . . . . . . Piercing . | . . . . . . Highest Corruption . | . . . . . . Average Corruption . | . . . . . . Corruption Purged . | . . . . . . Corruption Blocked . | . . . . . . Overload Shots . | . . . . . . Overflow Damage 81 | . . 3 4 . 74 Projectiles . | . . . . . . Explosions 81 | . . 3 4 . 74 Melee . | . . . . . . Knockbacks . | . . . . . . Impact . | . . . . . . Kinetic . | . . . . . . Secondary . | . . . . . . Self-Inflicted Damage 152 | . . . 38 . 114 Shots 2 | . . . 1 . 1 Rammed . | . . . . . . Targets Rammed . | . . . . . . Kicked . | . . . . . . Crushed . | . . . . . . Highest Temperature 208 | 40 208 70 55 . 56 Average Temperature 49 | 23 92 31 22 . 24 Received Heat Transfer 279 | . 54 117 . . 108 Siege Activations . | . . . . . . Robots Corrupted 1 | . . . . . 1 Combat Hostiles 1 | . . . . . 1 Parts Fried 1 | . . . . . 1 Impact Corruptions . | . . . . . . Robots Melted . | . . . . . . Combat Hostiles . | . . . . . . Parts Melted 3 | . 2 1 . . . Heat Transferred 1257 | 37 444 296 . . 480 Parts Sabotaged . | . . . . . . Parts Stolen . | . . . . . . Parts Stripped . | . . . . . . Power Chain Reactions 1 | . . . 1 . . Alert | -11 -10 -9 -9 -7 -6 ------- Run | Yrd Mat Mat Min Zio Pro Peak Influence 322 | 5 123 322 287 . . Initial 125 | . 3 51 125 . . Average 92 | . 45 140 186 . . Maximum Alert Level 1 | . . 1 1 . . Low Security (%) 85 | 100 100 80 55 . . Level 1 14 | . . 19 44 . . Level 2 . | . . . . . . Level 3 . | . . . . . . Level 4 . | . . . . . . Level 5 . | . . . . . . High Security . | . . . . . . Max Security . | . . . . . . Squads Dispatched 3 | . . 3 . . . Investigation 1 | . . 1 . . . Extermination . | . . . . . . Reinforcement 2 | . . 2 . . . Assault . | . . . . . . Garrison . | . . . . . . Intercept . | . . . . . . Searches Triggered . | . . . . . . Construction Impeded 1 | . . 1 . . . Haulers Reinforced . | . . . . . . Active Scanning Responses . | . . . . . . Cargo Convoy Interrupts . | . . . . . . Stealth | -11 -10 -9 -9 -7 -6 --------- Run | Yrd Mat Mat Min Zio Pro Distress Signals 1 | . . 1 . . . Communications Jammed . | . . . . . . Distress Signals . | . . . . . . Times Spotted 58 | . 7 15 12 . 24 Peak Tracking Total 11 | . 3 9 4 . 11 Tactical Retreats 3 | . . . 1 . 2 Traps | -11 -10 -9 -9 -7 -6 ------- Run | Yrd Mat Mat Min Zio Pro Traps Triggered . | . . . . . . Indirectly . | . . . . . . Trap Hack Attempts . | . . . . . . Triggered . | . . . . . . Disarmed . | . . . . . . Reprogrammed . | . . . . . . Reused . | . . . . . . Traps Extracted . | . . . . . . Installed . | . . . . . . Triggered . | . . . . . . Machines | -11 -10 -9 -9 -7 -6 ---------- Run | Yrd Mat Mat Min Zio Pro Machines Disabled 6 | . . 2 . . 4 Max in Single Turn 4 | . . 2 . . 4 Machines Repaired . | . . . . . . Machines Dismantled . | . . . . . . Machines Sabotaged . | . . . . . . Overloaded Fab Kills . | . . . . . . Hacking | -11 -10 -9 -9 -7 -6 --------- Run | Yrd Mat Mat Min Zio Pro Machines Accessed 6 | . 2 3 . . 1 Terminals 4 | . 1 2 . . 1 Fabricators . | . . . . . . Repair Stations 1 | . . 1 . . . Recycling Units 1 | . 1 . . . . Scanalyzers . | . . . . . . Garrison Access . | . . . . . . Total Hacks 20 | . 7 9 . . 4 Successful 12 | . 5 3 . . 4 Failed 8 | . 2 6 . . . Catastrophic 1 | . 1 . . . . Database Lockouts . | . . . . . . Manual 14 | . 5 9 . . . Terminals 14 | . 4 6 . . 4 Fabricators . | . . . . . . Repair Stations 3 | . . 3 . . . Recycling Units 3 | . 3 . . . . Scanalyzers . | . . . . . . Garrison Access . | . . . . . . Terminal Hacks 5 | . 1 . . . 4 Record 4 | . . . . . 4 Prototype ID Bank 1 | . 1 . . . . Fabricator Hacks . | . . . . . . Repair Station Hacks . | . . . . . . Recycling Unit Hacks 1 | . 1 . . . . Report Inventory 1 | . 1 . . . . Scanalyzer . | . . . . . . Garrison Access Hacks . | . . . . . . Unauthorized Hacks 6 | . 3 3 . . . Terminals 3 | . 1 2 . . . Botnet 3 | . 1 2 . . . Fabricators . | . . . . . . Repair Stations 1 | . . 1 . . . Mechanics 1 | . . 1 . . . Recycling Units 2 | . 2 . . . . Monitor 1 | . 1 . . . . Recyclers 1 | . 1 . . . . Scanalyzers . | . . . . . . Garrison Access . | . . . . . . Data Cores Recovered . | . . . . . . Used . | . . . . . . Hacking Detections 4 | . 1 2 . . 1 Full Trace Events 2 | . 1 1 . . . Feedback Events . | . . . . . . Feedback Blocked . | . . . . . . Robot Schematics Acquired . | . . . . . . Robots Built . | . . . . . . Authchips . | . . . . . . Time . | . . . . . . Total Robot Build Rating . | . . . . . . Part Schematics Acquired . | . . . . . . Parts Built . | . . . . . . Authchips . | . . . . . . Time . | . . . . . . Total Part Build Rating . | . . . . . . Parts Repaired . | . . . . . . Time . | . . . . . . Parts Recycled . | . . . . . . Recycled Matter . | . . . . . . Retrieved Matter . | . . . . . . Retrieved Components . | . . . . . . Parts Scanalyzed . | . . . . . . Part Schematics Acquired . | . . . . . . Parts Damaged . | . . . . . . Bothacking | -11 -10 -9 -9 -7 -6 ------------ Run | Yrd Mat Mat Min Zio Pro Used RIF Installer . | . . . . . . Robots Hacked . | . . . . . . Non-combat . | . . . . . . Combat . | . . . . . . Robot Hacks Applied . | . . . . . . Relay Couplers Released . | . . . . . . Fabnet Peak Effective % . | . . . . . . Robots Rewired . | . . . . . . Allies Hacked . | . . . . . . Hacks Repelled . | . . . . . . Allies | -11 -10 -9 -9 -7 -6 -------- Run | Yrd Mat Mat Min Zio Pro Total Allies 5 | . . . . 5 . Largest Group 5 | . . . . 5 5 Highest-Rated Group 127 | . . . . 127 127 Highest-Rated Ally 31 | . . . . 31 31 Total Orders . | . . . . . . Ally Attacks 41 | . . . . . 41 Total Damage 722 | . . . . . 722 Kills 7 | . . . . . 7 Allies Corrupted . | . . . . . . Allies Melted . | . . . . . . Intel | -11 -10 -9 -9 -7 -6 ------- Run | Yrd Mat Mat Min Zio Pro Robot Analysis Total . | . . . . . . Derelict Logs Recovered 6 | . . . 2 1 3 Drone Launches . | . . . . . . Drone Recoveries . | . . . . . . Exploration | -11 -10 -9 -9 -7 -6 ------------- Run | Yrd Mat Mat Min Zio Pro Turns Passed 1392 | 66 218 121 113 492 382 Spaces Moved 2204 | 56 172 156 159 1041 620 Core 12 | 9 . . 1 . 2 Treads . | . . . . . . Legs . | . . . . . . Wheels 219 | 47 172 . . . . Hover . | . . . . . . Flight 1973 | . . 156 158 1041 618 Fastest Speed 34 | 50 90 34 34 34 37 Average Speed 43 | 88 91 35 36 38 39 Slowest Speed 250 | 150 100 42 200 39 250 Overloaded Moves . | . . . . . . Propulsion Burnouts . | . . . . . . Robots Hopped 8 | . . 3 4 . 1 Cave-ins Triggered . | . . . . . . Exploration Rate (%) 43 | 5 41 22 41 87 65 Regions Visited 5 Branch Regions 3 Pre-discovered Areas 2 | . . . . 2 . Known Exits Taken 4 | . 1 1 1 1 . Unknown Exits Taken 1 | 1 . . . . . Scrap Searched 5 | . . . . 3 2 Spaces Dug . | . . . . . . Terrain Destroyed 30 | . . 10 7 . 13 Melee . | . . . . . . Projectile . | . . . . . . AOE 30 | . . 10 7 . 13 Terrain Rammed . | . . . . . . Walls Destroyed . | . . . . . . Machines Disabled . | . . . . . . Actions | -11 -10 -9 -9 -7 -6 --------- Run | Yrd Mat Mat Min Zio Pro Total 2516 | 65 202 187 194 1137 731 Wait 182 | . 2 3 8 81 88 Move 2183 | 55 171 149 150 1040 618 Hop 8 | . . 3 4 . 1 Pick Up 17 | 1 4 2 3 6 1 Fast Attach 18 | 7 3 1 4 . 3 Attach 11 | . . 5 3 1 2 Detach 5 | . 1 2 1 . 1 Swap 15 | . 1 4 6 2 2 Drop 18 | . 3 . 6 7 2 Fire 58 | 2 17 18 9 . 12 Melee 1 | . . . . . 1 Ram . | . . . . . . Kick . | . . . . . . Crush . | . . . . . . Escape Stasis . | . . . . . . Rewire . | . . . . . . Trap . | . . . . . . Miscellaneous . | . . . . . . Route ------- -11/Scrapyard -10/Materials (discovered 2 exits: *Mat / [*Min]) -9/Materials -9/Mines -7/Zion (discovered 2 exits: Dee / *Pro) -6/Proximity Caves History --------- Turn | Location | Event 12 | -11/Scrapyard | Discovered new exit (range 16) 67 | -11/Scrapyard | Entered Materials 129 | -10/Materials | Discovered new exit (range 6) 185 | -10/Materials | Discovered new exit (range 3) 199 | -10/Materials | Identified exit to Materials 285 | -10/Materials | Entered another Materials area 285 | -9/Materials | Evolved 2 slots: Propulsion x1, Utility x1 403 | -9/Materials | Destroyed 7 combat bots 404 | -9/Materials | Discovered new exit (range 9) 406 | -9/Materials | Identified exit to Mines 406 | -9/Materials | Entered Mines 412 | -9/Mines | Joined a pair of Derelicts in attacking an 0b10 outpost 431 | -9/Mines | Learned Materials trap positions 444 | -9/Mines | Learned Materials emergency access door positions 499 | -9/Mines | Lost 3 parts (3n) 502 | -9/Mines | A Derelict revealed a hidden shortcut to a safe place 511 | -9/Mines | Identified exit to Zion 519 | -9/Mines | Entered Zion 550 | -7/Zion | Identified exit to Deep Caves 573 | -7/Zion | Learned location of Warlord (-4) 628 | -7/Zion | Build established: Scavenger-Mutant 754 | -7/Zion | Found GAL Module 875 | -7/Zion | Found CR-A16's Pointy Stick 929 | -7/Zion | Gained Derelict followers 966 | -7/Zion | Discovered new exit (range 16) 971 | -7/Zion | Identified exit to Proximity Caves 1011 | -7/Zion | Entered Proximity Caves 1011 | -6/Proximity Caves | Accompanied by 5 allies 1031 | -6/Proximity Caves | Learned Factory terminal intel 1055 | -6/Proximity Caves | Learned Factory security intel 1139 | -6/Proximity Caves | Learned 4 Factory zone layouts 1385 | -6/Proximity Caves | Learned location of 1 exit from Research 1385 | -6/Proximity Caves | Learned Factory garrison access intel 1386 | -6/Proximity Caves | Core integrity fell below 50% 1388 | -6/Proximity Caves | Core integrity fell below 20% 1389 | -6/Proximity Caves | Attracted the attention of an 0b10 base 1393 | -6/Proximity Caves | Self-destructed Last Messages --------------- INTERCEPTED DERELICT INTEL. Data stored: Research exits (x1). >>Query(Status Report 588X) INTERCEPTED DERELICT INTEL. Data stored: Factory garrison access intel. Outpost Generator explodes. S-27 Virus destroyed. Destroyed VTOL Module. S-27 Virus destroyed. G-50 Soldier destroyed. Machine disabled. Outpost Terminal disabled. Machine disabled. G-50 Soldier destroyed. S-27 Virus destroyed. Storage Shell breached. Penetrated by Slug. Flight Unit destroyed. Acquired VTOL Module. VTOL Module destroyed. Map ----- +----------------------------------------------------+ | ##????????????????????????????????????????? | | ### ##????????????????????????????????????????? | | #### #####?????????????????????????????????????? | | #### ######????????????????????????????????????? | | #### ##########?????????????????????????????? | | #### ##########????????????????????????????? | | #### ### ###????????????????????????????? | | ### ## ##????????????????????????????? | | #### ### ##????????????????????????????? | | ### ##### ##????????????????????????????? | | ## ##### ##????????????????????????????? | | # "" ##????????????????????????????? | | " "" ###????????????????????????????? | | = " " """ ####????????????????????????????? | | % """ ###?????????????????????????????? | | % % "" "" ##???######??????######?????????? | | # #### """ " ##??#######????#########????????? | | ####### % " ##?#### ##???#### ###????????? | | ###### ##?### ######## ##????????? | | ##### ####### ####### ##????????? | | ####### ## ## ##????????? | | ## # ##? ##????????? | | #### # ##????????????? | | # ###### ## #####;;;;;;;;;## ????????? | | # ########## #[[" % "# ??????? | | ### %##??##### #[[ s @ % # ????? | | ### ##????## #[[" # ????? | | ?## ######## # " # #### ????? | | ### ######## #### g % ;;## ###### ???? | | ### ### ## # gg =%[ ;Y # ####???## ????? | | % /Y #" % ; + ###????## ????? | | ## % g/ #" [ ; + ##????????????? | | ## *## # #" # # ##????????????? | | ## %= # ####++#### # ##????????????? | | ! # # ##????????????? | | %! # # ??????????????? | | ## # " " " " # ??????????????? | | ## #""""" """""# ???????????????? | | ###### %######//++###### ?????????????? | | ###### ???????????? | | ###?######### #?????????????? | | ##?########## ###########????????????? | | ######????#### ####### ######?????????? | | #######?????##### #### ###########???? | | ##?????######## ### #########??? | | ##?????### ######## ###??? | | #### ##???#### ######## ####? | | #### ######### ########## ## ##? | | #### ####### ####### #### ### | | #?## ###### ## | +----------------------------------------------------+ Best States ------------- Heat Dissipation 28 Energy Generation 15 Energy Capacity 265 Matter Stores 300 Matter Capacity 300 Sight Range 16 Terrain Scan Range 16 Terrain Scan Density 85 Evasion (%) 63 Item Schematics ----------------- None Robot Schematics ------------------ None Fabricated ------------ Nothing Alien Tech Used ----------------- None Achievements -------------- None Challenges ------------ None Game ------ Seed TripodHardcellSplitter Manual? 0 Play Time 00:32:12 Cumulative 29.2 hours Start 2024.07.25 @ 15:17:19 End 2024.07.25 @ 15:47:33 Sessions 1 Manual Loads 0 Difficulty Rogue Special Mode None Game No. 27 Rogue 27 Adventurer 0 Explorer 0 Win Type - Total 0 Types 0/0/0/0/0/0/0/0/0 Lore% 22 Gallery% 29 Achievement% 23 Wizard Run 0 Options --------- Layout 1 ASCII 0 Keyboard 0 Movement Arrows Keybinds 0 Fullscreen 1 Font 16/Terminus Map View 55x38 Zoom Use 0% Tactical HUD 0 Map Filters NONE Filters NONE Steam 1 RUN: 8a20905d-6b09-458b-8746-53e02a82207e